bitfinex/quotes_BTCUSD_20241229
["timestamp","ask_amount","ask_price","bid_price","bid_amount"]
[1735470808191,3.8310391,95329.0,95328.0,0.00313622]
[1735470808368,3.8310391,95329.0,95328.0,0.00013622]
[1735470808758,3.8310391,95329.0,95328.0,0.00213622]
[1735470809756,3.8310391,95329.0,95328.0,0.00013622]
[1735470810187,3.8310391,95329.0,95328.0,0.00213622]
[1735470810397,3.8312099,95329.0,95328.0,0.00313622]
[1735470810912,3.8312099,95329.0,95328.0,0.00213622]
[1735470811313,3.8312099,95329.0,95328.0,0.00113622]
[1735470811845,3.8312099,95329.0,95328.0,0.00213622]
[1735470812046,3.8312099,95329.0,95328.0,0.00313622]
[1735470813039,3.8312099,95329.0,95328.0,0.00113622]
[1735470813361,3.8312099,95329.0,95328.0,0.00313622]
[1735470813773,3.8312099,95329.0,95328.0,0.00213622]
[1735470814299,3.8312099,95329.0,95328.0,0.00313622]
[1735470818262,3.81475123,95329.0,95328.0,0.00313622]
[1735470820432,3.81475123,95329.0,95328.0,0.00213622]
[1735470820612,3.81475123,95329.0,95328.0,0.00013622]
[1735470821019,3.81575123,95329.0,95328.0,0.00013622]
[1735470821195,3.83220994,95329.0,95328.0,0.00013622]
[1735470822335,3.83120994,95329.0,95328.0,0.00013622]
[1735470822632,3.83120994,95329.0,95328.0,0.00113622]
[1735470822986,3.83120994,95329.0,95328.0,0.00213622]
[1735470823436,3.83120994,95329.0,95328.0,0.04727595]
[1735470827676,3.83120994,95329.0,95328.0,0.00213622]
[1735470828688,3.81475123,95329.0,95328.0,0.00213622]
[1735470829829,3.83120992,95329.0,95328.0,0.00213622]
[1735470832628,3.54439604,95329.0,95328.0,0.00213622]
[1735470832826,3.54439692,95329.0,95328.0,0.00213622]
[1735470833609,0.02176792,95329.0,95328.0,0.00213622]
[1735470833810,3.54439692,95329.0,95328.0,0.00213622]
[1735470835898,3.54439692,95329.0,95328.0,0.04727595]
[1735470840795,3.54439692,95329.0,95328.0,0.04627595]
[1735470841347,3.54439692,95329.0,95328.0,0.04927595]
[1735470841641,3.54439692,95329.0,95328.0,0.04827595]
[1735470841946,3.54439692,95329.0,95328.0,0.05027595]
[1735470843344,3.54439692,95329.0,95328.0,0.00513622]
[1735470843584,3.52793823,95329.0,95328.0,0.05027595]
[1735470844261,3.52793823,95329.0,95328.0,0.00513622]
[1735470844443,0.00530923,95329.0,95328.0,0.05027595]
[1735470844640,3.5227998,95329.0,95328.0,0.05027595]
[1735470844823,3.52809618,95329.0,95328.0,0.04827595]
[1735470845889,3.54455483,95329.0,95328.0,0.04827595]
[1735470846183,3.54455483,95329.0,95328.0,0.05027595]
[1735470846338,3.54455483,95329.0,95328.0,0.04827595]
[1735470846756,3.54455483,95329.0,95328.0,0.00513622]
[1735470847145,3.54455483,95329.0,95328.0,0.00213622]
[1735470847366,3.54455483,95329.0,95328.0,0.00513622]
[1735470848716,3.54455483,95329.0,95328.0,0.05027595]
[1735470849352,3.54455483,95329.0,95328.0,0.00513622]
[1735470849587,3.54455483,95329.0,95328.0,0.04827595]
[1735470851379,3.54455483,95329.0,95328.0,0.00313622]
[1735470851575,3.54455483,95329.0,95328.0,0.04827595]
[1735470851966,3.54455483,95329.0,95328.0,0.00513622]
[1735470852252,3.54455483,95329.0,95328.0,0.05027595]
[1735470852683,3.54455483,95329.0,95328.0,0.00513622]
[1735470853578,3.52809618,95329.0,95328.0,0.00513622]
[1735470854426,3.52809618,95329.0,95328.0,0.05027595]
[1735470854625,3.52809618,95329.0,95328.0,0.00213622]
[1735470854799,3.52809618,95329.0,95328.0,0.04727595]
[1735470855009,3.257077,95329.0,95328.0,0.00213622]
[1735470855211,3.257077,95329.0,95328.0,0.00013622]
[1735470856355,3.256077,95329.0,95328.0,0.00013622]
[1735470856700,3.256077,95329.0,95328.0,0.00313622]
[1735470856904,3.256077,95329.0,95328.0,0.00013622]
[1735470857081,3.256077,95329.0,95328.0,0.00313622]
[1735470857284,3.256077,95329.0,95328.0,0.00513622]
[1735470857545,3.256077,95329.0,95328.0,0.00213622]
[1735470857703,3.256077,95329.0,95328.0,0.00513622]
[1735470857921,3.2562478,95329.0,95328.0,0.00513622]
[1735470858248,3.27270646,95329.0,95328.0,0.00513622]
[1735470859137,3.27270646,95329.0,95328.0,0.04827595]
[1735470859348,3.27270646,95329.0,95328.0,0.00313622]
[1735470859575,3.27270646,95329.0,95328.0,0.00213622]
[1735470859716,3.27270646,95329.0,95328.0,0.04727595]
[1735470860436,3.27270646,95329.0,95328.0,0.04827595]
[1735470863696,3.2562478,95329.0,95328.0,0.04827595]
[1735470863848,3.2562478,95329.0,95328.0,0.00313622]
[1735470864052,3.2562478,95329.0,95328.0,0.04827595]
[1735470866516,3.27270648,95329.0,95328.0,0.04827595]
[1735470866720,3.27270648,95329.0,95328.0,0.04527595]
[1735470866917,3.27370648,95329.0,95328.0,0.04527595]
[1735470867257,3.27270648,95329.0,95328.0,0.04527595]
[1735470867594,3.27270648,95329.0,95328.0,0.04927595]
[1735470867894,3.27270648,95329.0,95328.0,0.04527595]
[1735470868996,3.27270648,95329.0,95328.0,0.04927595]
[1735470869364,3.27270648,95329.0,95328.0,0.04527595]
[1735470869723,3.27270648,95329.0,95328.0,0.05127595]
[1735470870259,3.27270648,95329.0,95328.0,0.05327595]
[1735470870464,3.27270648,95329.0,95328.0,0.04527595]
[1735470870681,3.27270648,95329.0,95328.0,0.04727595]
[1735470870864,3.27270648,95329.0,95328.0,0.00213622]
[1735470871047,3.27270648,95329.0,95328.0,0.04727595]
[1735470871379,3.27470648,95329.0,95328.0,0.04527595]
[1735470871541,3.27470648,95329.0,95328.0,0.00013622]
[1735470872541,3.27270648,95329.0,95328.0,0.04727595]
[1735470872887,3.27270648,95329.0,95328.0,0.00613622]
[1735470873189,3.27270648,95329.0,95328.0,0.04527595]
[1735470873390,3.27270648,95329.0,95328.0,0.04927595]
[1735470873710,3.27270648,95329.0,95328.0,0.00213622]
[1735470873891,3.27270648,95329.0,95328.0,0.00613622]
[1735470874120,3.2562478,95329.0,95328.0,0.00413622]
[1735470874492,3.2562478,95329.0,95328.0,0.00613622]
[1735470874690,3.2562478,95329.0,95328.0,0.05127595]
[1735470874997,3.2562478,95329.0,95328.0,0.00613622]
[1735470875178,3.2562478,95329.0,95328.0,0.05127595]
[1735470875997,3.2562478,95329.0,95328.0,0.04927595]
[1735470876976,3.2562478,95329.0,95328.0,0.05127595]
[1735470877191,3.27270648,95329.0,95328.0,0.05127595]
[1735470878356,0.01662948,95329.0,95328.0,0.05127595]
[1735470878734,3.27270648,95329.0,95328.0,0.05127595]
[1735470879960,3.27270648,95329.0,95328.0,0.04927595]
[1735470880155,3.27270648,95329.0,95328.0,0.04527595]
[1735470880302,3.27270648,95329.0,95328.0,0.00013622]
[1735470880658,3.27270648,95329.0,95328.0,0.04527595]
[1735470881032,3.27270648,95329.0,95328.0,0.00413622]
[1735470882048,3.27270648,95329.0,95328.0,0.04927595]
[1735470882246,3.27270648,95329.0,95328.0,0.00213622]
[1735470882465,3.27270648,95329.0,95328.0,0.00613622]
[1735470882820,3.27270648,95329.0,95328.0,0.04727595]
[1735470883018,3.27270648,95329.0,95328.0,0.00613622]
[1735470883293,3.27270648,95329.0,95328.0,0.00013622]
[1735470883617,3.2562478,95329.0,95328.0,0.05127595]
[1735470884014,3.2562478,95329.0,95328.0,0.04927595]
[1735470885273,3.2562478,95329.0,95328.0,0.04527595]
[1735470885625,3.2572478,95329.0,95328.0,0.04527595]
[1735470885832,3.2562478,95329.0,95328.0,0.00013622]
[1735470886035,3.2562478,95329.0,95328.0,0.00213622]
[1735470886196,3.2562478,95329.0,95328.0,0.00513622]
[1735470886392,3.2562478,95329.0,95328.0,0.05027595]
[1735470886594,3.2562478,95329.0,95328.0,0.00313622]
[1735470886595,3.27270637,95329.0,95328.0,0.00313622]
[1735470886793,3.27270637,95329.0,95328.0,0.04827595]
[1735470887096,3.27270637,95329.0,95328.0,0.05027595]
[1735470887294,3.27270637,95329.0,95328.0,0.04827595]
[1735470887794,3.27270637,95329.0,95328.0,0.05027595]
[1735470888280,3.27270637,95329.0,95328.0,0.00213622]
[1735470888680,3.27270637,95329.0,95328.0,0.00513622]
[1735470889102,3.27270637,95329.0,95328.0,0.04827595]
[1735470889312,3.27270637,95329.0,95328.0,0.00313622]
[1735470889511,3.27270637,95329.0,95328.0,0.04827595]
[1735470890331,3.27270637,95329.0,95328.0,0.05027595]
[1735470890874,3.27270637,95329.0,95328.0,0.00513622]
[1735470891910,3.27270637,95329.0,95328.0,0.00213622]
[1735470892215,3.27270637,95329.0,95328.0,0.00413622]
[1735470892537,3.27270637,95329.0,95328.0,0.00213622]
[1735470892937,3.27270637,95329.0,95328.0,0.00313622]
[1735470893544,3.2774731,95329.0,95328.0,0.00313622]
[1735470893750,3.26101453,95329.0,95328.0,0.00313622]
[1735470894492,3.39751493,95329.0,95328.0,0.00313622]
[1735470895119,3.39751493,95329.0,95328.0,0.00113622]
[1735470895546,3.39751493,95329.0,95328.0,0.00313622]
[1735470895849,3.39751493,95329.0,95328.0,0.00013622]
[1735470896058,3.40151493,95329.0,95328.0,0.00113622]
[1735470896370,3.34785504,95329.0,95328.0,0.00113622]
[1735470896567,3.34785504,95329.0,95328.0,0.00013622]
[1735470896889,3.34885504,95329.0,95328.0,0.00013622]
[1735470897068,3.36931695,95329.0,95328.0,0.00013622]
[1735470897284,3.36831695,95329.0,95328.0,0.00013622]
[1735470897650,3.36931695,95329.0,95328.0,0.00013622]
[1735470898289,3.36131695,95329.0,95328.0,0.00013622]
[1735470898651,3.36531695,95329.0,95328.0,0.00013622]
[1735470898853,3.36431695,95329.0,95328.0,0.00013622]
[1735470899080,3.36831695,95329.0,95328.0,0.00013622]
[1735470899419,3.36031695,95329.0,95328.0,0.00013622]
[1735470899604,3.38751864,95329.0,95328.0,0.00013622]
[1735470899816,3.36531695,95329.0,95328.0,0.00013622]
[1735470900192,3.36831695,95329.0,95328.0,0.00013622]
[1735470900554,3.36931695,95329.0,95328.0,0.00013622]
[1735470901710,3.36131695,95329.0,95328.0,0.00013622]
[1735470901925,3.36031695,95329.0,95328.0,0.00013622]
[1735470902259,3.36531695,95329.0,95328.0,0.00013622]
[1735470902622,3.36831695,95329.0,95328.0,0.00013622]
[1735470902828,3.36731695,95329.0,95328.0,0.00013622]
[1735470903073,3.36831695,95329.0,95328.0,0.00013622]
[1735470903573,3.28001695,95329.0,95328.0,0.00013622]
[1735470903905,3.26555504,95329.0,95328.0,0.00013622]
[1735470905091,3.26155504,95329.0,95328.0,0.00013622]
[1735470905390,3.26455504,95329.0,95328.0,0.00013622]
[1735470905584,3.26255504,95329.0,95328.0,0.00013622]
[1735470906003,3.26455504,95329.0,95328.0,0.00013622]
[1735470906385,0.00547804,95329.0,95328.0,0.00113622]
[1735470906579,0.02194046,95329.0,95328.0,0.00213622]
[1735470906786,0.02194046,95329.0,95328.0,0.00113622]
[1735470907125,0.02194046,95329.0,95328.0,0.00213622]
[1735470907330,3.27801746,95329.0,95328.0,0.00213622]
[1735470913626,3.26155504,95329.0,95328.0,0.00213622]
[1735470916923,3.27801502,95329.0,95328.0,0.00213622]
[1735470918195,3.27801502,95329.0,95328.0,0.00113622]
[1735470918610,3.28101502,95329.0,95328.0,0.00113622]
[1735470918908,3.28101502,95329.0,95328.0,0.00013622]
[1735470919127,3.28101502,95329.0,95328.0,0.00113622]
[1735470919318,3.28201502,95329.0,95328.0,0.00113622]
[1735470920147,3.28101502,95329.0,95328.0,0.00113622]
[1735470920547,3.28101502,95329.0,95328.0,0.00213622]
[1735470920895,0.02493802,95329.0,95328.0,0.00213622]
[1735470921084,0.01963078,95329.0,95328.0,0.00213622]
[1735470921290,3.28077791,95329.0,95328.0,0.00213622]
[1735470922586,3.28077791,95329.0,95328.0,0.10013622]
[1735470923542,3.26431793,95329.0,95328.0,0.10013622]
[1735470926650,3.28077827,95329.0,95328.0,0.10013622]
[1735470933641,3.26431793,95329.0,95328.0,0.10013622]
[1735470935875,3.26431793,95329.0,95328.0,0.00213622]
[1735470936978,3.28077838,95329.0,95328.0,0.00213622]
[1735470937301,3.05931758,95329.0,95328.0,0.00213622]
[1735470938374,3.05948838,95329.0,95328.0,0.00213622]
[1735470943574,3.04302793,95329.0,95328.0,0.00213622]
[1735470948204,3.05948865,95329.0,95328.0,0.00213622]
[1735470950695,3.05441852,95329.0,95328.0,0.00213622]
[1735470953108,0.01663152,95329.0,95328.0,0.00213622]
[1735470953590,3.05441852,95329.0,95328.0,0.00213622]
[1735470953803,3.0379578,95329.0,95328.0,0.00213622]
[1735470955073,3.0379578,95329.0,95328.0,0.00013622]
[1735470955322,3.0429578,95329.0,95328.0,0.00013622]
[1735470955524,3.0449578,95329.0,95328.0,0.00013622]
[1735470955738,3.0449578,95329.0,95328.0,0.00113622]
[1735470955939,3.0429578,95329.0,95328.0,0.00113622]
[1735470956071,3.0379578,95329.0,95328.0,0.00113622]
[1735470956291,3.0379578,95329.0,95328.0,0.00213622]
[1735470956515,3.0379578,95329.0,95328.0,0.00013622]
[1735470956681,3.05441855,95329.0,95328.0,0.00013622]
[1735470956882,3.05541855,95329.0,95328.0,0.00913622]
[1735470959462,3.05541855,95329.0,95328.0,0.10713622]
[1735470963756,3.0389578,95329.0,95328.0,0.10713622]
[1735470964639,3.0389578,95329.0,95328.0,0.15227595]
[1735470964640,2.5701708,95329.0,95328.0,0.15227595]
[1735470964818,0.3791708,95329.0,95328.0,0.27487595]
[1735470965627,0.8761708,95329.0,95328.0,0.27487595]
[1735470968222,0.89263101,95329.0,95328.0,0.27487595]
[1735470972406,0.83763101,95329.0,95328.0,0.27487595]
[1735470972755,0.68663101,95329.0,95328.0,0.30269933]
[1735470973519,0.6701708,95329.0,95328.0,0.30269933]
[1735470973915,0.6701708,95329.0,95328.0,0.27487595]
[1735470975753,0.0011708,95329.0,95328.0,0.27487595]
[1735470976924,0.01763018,95329.0,95328.0,0.27487595]
[1735470979836,0.01763018,95329.0,95328.0,0.27076744]
[1735470983001,0.0011708,95329.0,95328.0,0.27076744]
[1735470983243,0.0001708,95329.0,95328.0,0.26573973]
[1735470983443,0.0001708,95329.0,95328.0,0.27173973]
[1735470983649,0.0011708,95329.0,95328.0,0.27173973]
[1735470984197,0.0011708,95329.0,95328.0,0.27373973]
[1735470985115,0.0011708,95329.0,95328.0,0.27382513]
[1735470986214,0.01763031,95329.0,95328.0,0.27382513]
[1735470986559,0.01663031,95329.0,95328.0,0.26782513]
[1735470986863,0.01663031,95329.0,95328.0,0.26582513]
[1735470987198,0.01663031,95329.0,95328.0,0.26782513]
[1735470987670,0.01663031,95329.0,95328.0,0.26582513]
[1735470987887,0.01663031,95329.0,95328.0,0.27082513]
[1735470988065,0.01663031,95329.0,95328.0,0.27282513]
[1735470988267,0.01663031,95329.0,95328.0,0.26782513]
[1735470988471,0.01663031,95329.0,95328.0,0.27282513]
[1735470990949,0.01663031,95329.0,95328.0,0.30044342]
[1735470992173,0.01663031,95329.0,95328.0,0.29544342]
[1735470992620,0.01663031,95329.0,95328.0,0.30044342]
[1735470992880,0.01663031,95329.0,95328.0,0.27282513]
[1735470993286,0.0942501,95367.0,95329.0,0.0794]
[1735470993527,3.295287,95366.0,95330.0,0.08044877]
[1735470993780,3.037787,95365.0,95345.0,0.0794]
[1735470994001,3.037787,95365.0,95346.0,0.098]
[1735470995038,3.041787,95365.0,95346.0,0.12025397]
[1735470995244,3.037787,95364.0,95346.0,0.12025397]
[1735470995640,3.037787,95364.0,95346.0,0.098]
[1735470996558,3.037787,95365.0,95346.0,0.098]
[1735470996863,0.01645799,95360.0,95346.0,0.098]
[1735470997107,3.037787,95359.0,95346.0,0.098]
[1735470999618,3.039787,95359.0,95346.0,0.098]
[1735470999864,3.037787,95358.0,95346.0,0.099]
[1735471000039,3.037787,95358.0,95347.0,0.098]
[1735471000251,3.037787,95359.0,95347.0,0.098]
[1735471001973,3.037787,95359.0,95347.0,0.099]
[1735471003670,3.037787,95365.0,95347.0,0.099]
[1735471004671,0.0728,95364.0,95347.0,0.001]
[1735471004901,3.037787,95363.0,95346.0,0.098]
[1735471006402,3.038787,95363.0,95346.0,0.098]
[1735471006602,3.037787,95362.0,95346.0,0.098]
[1735471006803,0.01645834,95359.0,95346.0,0.098]
[1735471007142,3.037787,95358.0,95346.0,0.098]
[1735471008529,3.037787,95358.0,95343.0,0.04513973]
[1735471009182,3.037787,95358.0,95346.0,0.001]
[1735471009384,3.037787,95358.0,95343.0,0.04513973]
[1735471009800,3.037787,95358.0,95343.0,0.04613973]
[1735471010165,3.037787,95358.0,95347.0,0.098]
[1735471010339,3.037787,95357.0,95343.0,0.04613973]
[1735471010605,3.037787,95358.0,95346.0,0.001]
[1735471011888,3.037787,95358.0,95343.0,0.04613973]
[1735471011889,3.037787,95358.0,95343.0,0.04212235]
[1735471014774,3.039787,95358.0,95343.0,0.04212235]
[1735471014978,3.037787,95357.0,95344.0,0.076]
[1735471016219,0.004,95357.0,95344.0,0.076]
[1735471016457,3.037787,95356.0,95344.0,0.076]
[1735471018545,0.002,95356.0,95344.0,0.076]
[1735471018727,3.037787,95355.0,95344.0,0.076]
[1735471019863,3.037787,95355.0,95344.0,0.0761708]
[1735471020273,3.040787,95355.0,95344.0,0.0761708]
[1735471020631,3.037787,95354.0,95344.0,0.0761708]
[1735471021787,3.039787,95354.0,95344.0,0.0761708]
[1735471021985,3.037787,95353.0,95344.0,0.0761708]
[1735471023354,3.039787,95353.0,95344.0,0.0761708]
[1735471023557,3.037787,95352.0,95344.0,0.0761708]
[1735471025158,3.037787,95358.0,95344.0,0.0761708]
[1735471025357,0.002,95352.0,95344.0,0.0761708]
[1735471025589,3.037787,95351.0,95344.0,0.0761708]
[1735471026574,3.037787,95351.0,95344.0,0.07167928]
[1735471026791,3.037787,95357.0,95344.0,0.07167928]
[1735471026956,3.037787,95350.0,95344.0,0.07167928]
[1735471027163,3.037787,95357.0,95344.0,0.07167928]
[1735471027567,0.01645862,95354.0,95344.0,0.07167928]
[1735471027736,0.001,95351.0,95344.0,0.07167928]
[1735471027939,3.037787,95350.0,95344.0,0.07167928]
[1735471029110,3.037787,95353.0,95344.0,0.07167928]
[1735471029772,0.001,95350.0,95344.0,0.07167928]
[1735471029971,3.037787,95349.0,95344.0,0.07167928]
[1735471030473,0.001,95350.0,95344.0,0.07167928]
[1735471030678,3.037787,95349.0,95344.0,0.07167928]
[1735471031306,0.001,95349.0,95344.0,0.07167928]
[1735471031598,3.037787,95348.0,95344.0,0.07167928]
[1735471032722,2.987787,95348.0,95344.0,0.07167928]
[1735471033027,2.987787,95347.0,95344.0,0.07167928]
[1735471033248,2.987787,95346.0,95344.0,0.07167928]
[1735471033412,2.987787,95345.0,95344.0,0.07167928]
[1735471034557,2.798519,95345.0,95344.0,0.07167928]
[1735471035160,2.788,95345.0,95344.0,0.07167928]
[1735471036527,2.788,95345.0,95344.0,0.07267928]
[1735471041464,2.788,95345.0,95344.0,0.07167928]
[1735471041633,2.788,95345.0,95344.0,0.07267928]
[1735471043681,2.7880854,95345.0,95344.0,0.07267928]
[1735471045844,2.7880854,95345.0,95344.0,0.06765923]
[1735471053945,2.7880854,95345.0,95344.0,0.06489812]
[1735471060973,2.80454427,95345.0,95344.0,0.06489812]
[1735471061394,2.79254427,95345.0,95344.0,0.06489812]
[1735471061703,2.75954427,95345.0,95344.0,0.06489812]
[1735471061893,2.74754427,95345.0,95344.0,0.06489812]
[1735471063617,2.7310854,95345.0,95344.0,0.06489812]
[1735471066015,8.54e-05,95345.0,95344.0,0.06489812]
[1735471066337,2.7986044,95345.0,95344.0,0.06489812]
[1735471066539,8.54e-05,95345.0,95344.0,0.06489812]
[1735471066894,2.7986044,95345.0,95344.0,0.06489812]
[1735471067123,2.7996044,95345.0,95344.0,0.06489812]
[1735471067908,2.7996044,95345.0,95344.0,0.06389812]
[1735471068118,2.81806327,95345.0,95344.0,0.06389812]
[1735471068318,2.81706327,95345.0,95344.0,0.06389812]
[1735471069156,2.81706327,95345.0,95344.0,0.06489812]
[1735471072360,2.07354427,95345.0,95344.0,0.06489812]
[1735471072564,2.03454427,95345.0,95344.0,0.06489812]
[1735471073723,2.0180854,95345.0,95344.0,0.06489812]
[1735471074813,1.9990854,95345.0,95344.0,0.06489812]
[1735471074946,1.9970854,95345.0,95344.0,0.06389812]
[1735471075309,1.9970854,95345.0,95344.0,0.06489812]
[1735471075467,1.9970854,95345.0,95344.0,0.06389812]
[1735471075880,1.9990854,95345.0,95344.0,0.06389812]
[1735471078054,1.9980854,95345.0,95344.0,0.06389812]
[1735471078257,2.01554423,95345.0,95344.0,0.06389812]
[1735471081349,1.82854423,95345.0,95344.0,0.06389812]
[1735471081550,1.52254423,95345.0,95344.0,0.06389812]
[1735471090171,2.46754423,95345.0,95344.0,0.06389812]
[1735471090377,0.01854423,95345.0,95344.0,0.06389812]
[1735471090914,2.51554423,95345.0,95344.0,0.06389812]
[1735471091111,0.01854423,95345.0,95344.0,0.06389812]
[1735471091320,2.51554423,95345.0,95344.0,0.06389812]
[1735471092574,2.50354423,95345.0,95344.0,0.06389812]
[1735471093335,2.33954423,95345.0,95344.0,0.06389812]
[1735471093483,1.69954423,95345.0,95344.0,0.06389812]
[1735471097990,1.6830854,95345.0,95344.0,0.06389812]
[1735471101041,1.69954415,95345.0,95344.0,0.06389812]
[1735471103657,1.6830854,95345.0,95344.0,0.06389812]
[1735471106593,1.69954415,95345.0,95344.0,0.06389812]
[1735471106897,0.01854415,95345.0,95344.0,0.06389812]
[1735471107193,2.81706315,95345.0,95344.0,0.06389812]
[1735471113415,2.81706315,95345.0,95344.0,0.0001708]
[1735471113589,2.8006044,95345.0,95344.0,0.0001708]
[1735471118081,2.817064,95345.0,95344.0,0.0001708]
[1735471123591,2.816064,95345.0,95344.0,0.0001708]
[1735471124026,2.818064,95345.0,95344.0,0.0001708]
[1735471124647,2.817064,95345.0,95344.0,0.0001708]
[1735471126559,2.820064,95345.0,95344.0,0.0001708]
[1735471127112,1.373545,95345.0,95344.0,0.1804708]
[1735471127295,1.332545,95345.0,95344.0,0.1804708]
[1735471127694,1.3130854,95345.0,95344.0,0.1804708]
[1735471128261,1.3140854,95345.0,95344.0,0.1804708]
[1735471128594,1.3120854,95345.0,95344.0,0.1804708]
[1735471128997,1.3130854,95345.0,95344.0,0.1804708]
[1735471130666,1.32954409,95345.0,95344.0,0.1804708]
[1735471132479,2.81654409,95345.0,95344.0,0.1804708]
[1735471132680,2.76954409,95345.0,95344.0,0.1804708]
[1735471133701,2.7530854,95345.0,95344.0,0.1804708]
[1735471136569,2.76954415,95345.0,95344.0,0.1804708]
[1735471141364,2.76954415,95345.0,95344.0,0.0824708]
[1735471141576,2.76954415,95345.0,95344.0,0.0001708]
[1735471143673,2.7530854,95345.0,95344.0,0.0001708]
[1735471146734,2.769545,95345.0,95344.0,0.0001708]
[1735471157447,0.018545,95345.0,95344.0,0.0001708]
[1735471157865,2.817064,95345.0,95344.0,0.0001708]
[1735471158049,2.8006044,95345.0,95344.0,0.0001708]
[1735471160983,2.817064,95345.0,95344.0,0.0001708]
[1735471167244,2.8006044,95345.0,95344.0,0.0001708]
[1735471167382,2.7996044,95345.0,95344.0,0.0001708]
[1735471167623,2.7986044,95345.0,95344.0,0.0001708]
[1735471167787,2.8006044,95345.0,95344.0,0.0001708]
[1735471167987,2.7996044,95345.0,95344.0,0.0001708]
[1735471168189,2.7986044,95345.0,95344.0,0.0001708]
[1735471168482,2.7996044,95345.0,95344.0,0.0001708]
[1735471168687,2.8006044,95345.0,95344.0,0.0001708]
[1735471169680,2.817064,95345.0,95344.0,0.0001708]
[1735471170610,0.018545,95345.0,95344.0,0.0001708]
[1735471170851,2.817064,95345.0,95344.0,0.0001708]
[1735471173500,2.8006044,95345.0,95344.0,0.0001708]
[1735471176727,2.817064,95345.0,95344.0,0.0001708]
[1735471177896,2.8006044,95345.0,95344.0,0.0001708]
[1735471180950,2.81706332,95345.0,95344.0,0.0001708]
[1735471183608,2.8006044,95345.0,95344.0,0.0001708]
[1735471186783,2.81706332,95345.0,95344.0,0.0001708]
[1735471191522,2.81706332,95345.0,95344.0,0.0806708]
[1735471193479,2.8006044,95345.0,95344.0,0.0806708]
[1735471196350,1.9240854,95345.0,95344.0,0.2280708]
[1735471196756,1.940544,95345.0,95344.0,0.2280708]
[1735471197159,1.938544,95345.0,95344.0,0.2280708]
[1735471197534,1.924544,95345.0,95344.0,0.2280708]
[1735471197766,1.924544,95345.0,95344.0,0.2290708]
[1735471198084,1.924544,95345.0,95344.0,0.2300708]
[1735471201879,0.016544,95345.0,95344.0,0.2300708]
[1735471202133,2.815063,95345.0,95344.0,0.2300708]
[1735471202732,2.158544,95345.0,95344.0,0.2300708]
[1735471203532,2.1420854,95345.0,95344.0,0.2300708]
[1735471204795,1.93476183,95345.0,95344.0,0.2300708]
[1735471204926,2.591281,95354.0,95344.0,0.2300708]
[1735471205137,0.28364093,95355.0,95344.0,0.2300708]
[1735471205138,2.591281,95353.0,95344.0,0.2300708]
[1735471205322,8.54e-05,95345.0,95344.0,0.2300708]
[1735471205538,2.5913664,95345.0,95344.0,0.2300708]
[1735471206377,2.5913664,95345.0,95344.0,0.2290708]
[1735471206583,2.60782463,95345.0,95344.0,0.2290708]
[1735471206782,2.5913664,95345.0,95344.0,0.2290708]
[1735471208080,2.5913664,95345.0,95344.0,0.2300708]
[1735471210209,2.60782476,95345.0,95344.0,0.2300708]
[1735471210462,2.5913664,95345.0,95344.0,0.2300708]
[1735471214109,2.5913664,95345.0,95344.0,0.0021708]
[1735471215600,2.60782524,95345.0,95344.0,0.0021708]
[1735471217012,2.5913664,95345.0,95344.0,0.0021708]
[1735471219869,0.01654424,95345.0,95344.0,0.0021708]
[1735471220269,2.60782524,95345.0,95344.0,0.0021708]
[1735471223511,2.5913664,95345.0,95344.0,0.0021708]
[1735471225029,2.5913664,95345.0,95344.0,0.0011708]
[1735471225449,2.5923664,95345.0,95344.0,0.0011708]
[1735471225866,2.5913664,95345.0,95344.0,0.0011708]
[1735471226021,2.5913664,95345.0,95344.0,0.0021708]
[1735471226942,2.60782524,95345.0,95344.0,0.0011708]
[1735471227350,2.61082524,95345.0,95344.0,0.0011708]
[1735471227573,2.60782524,95345.0,95344.0,0.0011708]
[1735471227862,2.61082524,95345.0,95344.0,0.0011708]
[1735471228241,2.60782524,95345.0,95344.0,0.0001708]
[1735471228390,2.60882524,95345.0,95344.0,0.0001708]
[1735471229057,2.60782524,95345.0,95344.0,0.0001708]
[1735471229293,2.60882524,95345.0,95344.0,0.0001708]
[1735471229670,2.61182524,95345.0,95344.0,0.0001708]
[1735471229866,2.61082524,95345.0,95344.0,0.0001708]
[1735471230029,2.60882524,95345.0,95344.0,0.0001708]
[1735471230453,2.61182524,95345.0,95344.0,0.0001708]
[1735471233550,2.5953664,95345.0,95344.0,0.0001708]
[1735471233756,0.0040854,95345.0,95344.0,0.0001708]
[1735471234159,2.5953664,95345.0,95344.0,0.0001708]
[1735471236704,2.61182553,95345.0,95344.0,0.0001708]
[1735471243507,2.5953664,95345.0,95344.0,0.0001708]
[1735471247617,0.0040854,95345.0,95344.0,0.0001708]
[1735471247858,2.5953664,95345.0,95344.0,0.0001708]
[1735471248182,2.6118253,95345.0,95344.0,0.0001708]
[1735471253596,2.5953664,95345.0,95344.0,0.0001708]
[1735471254024,2.5943664,95345.0,95344.0,0.0001708]
[1735471254282,2.5913664,95345.0,95344.0,0.0001708]
[1735471254446,2.5953664,95345.0,95344.0,0.0001708]
[1735471254762,2.5923664,95345.0,95344.0,0.0001708]
[1735471255069,2.5913664,95345.0,95344.0,0.0001708]
[1735471255360,2.5923664,95345.0,95344.0,0.0001708]
[1735471256349,2.5953664,95345.0,95344.0,0.0001708]
[1735471257089,2.6118253,95345.0,95344.0,0.0001708]
[1735471260815,2.6108253,95345.0,95344.0,0.0001708]
[1735471261195,2.6088253,95345.0,95344.0,0.0001708]
[1735471261380,2.6088253,95345.0,95344.0,0.0021708]
[1735471261580,2.6078253,95345.0,95344.0,0.0021708]
[1735471262685,2.6078253,95345.0,95344.0,0.0001708]
[1735471263127,2.6078253,95345.0,95344.0,0.0021708]
[1735471263333,2.6078253,95345.0,95344.0,0.0001708]
[1735471263575,2.5913664,95345.0,95344.0,0.0001708]
[1735471263776,2.5933664,95345.0,95344.0,0.0011708]
[1735471264135,2.5933664,95345.0,95344.0,0.0001708]
[1735471264355,2.5943664,95345.0,95344.0,0.0001708]
[1735471268149,2.6108253,95345.0,95344.0,0.0001708]
[1735471273596,2.5943664,95345.0,95344.0,0.0001708]
[1735471278053,2.6108253,95345.0,95344.0,0.0001708]
[1735471283634,2.5943664,95345.0,95344.0,0.0001708]
[1735471286785,2.61082528,95345.0,95344.0,0.0001708]
[1735471287970,2.5943664,95345.0,95344.0,0.0001708]
[1735471291004,2.61082528,95345.0,95344.0,0.0001708]
[1735471293555,2.5943664,95345.0,95344.0,0.0001708]
[1735471296760,2.61082528,95345.0,95344.0,0.0001708]
[1735471298041,2.5943664,95345.0,95344.0,0.0001708]
[1735471300904,2.61082528,95345.0,95344.0,0.0001708]
[1735471303489,2.5943664,95345.0,95344.0,0.0001708]
[1735471306043,0.31809302,95359.0,95344.0,0.0001708]
[1735471306380,2.591281,95358.0,95344.0,0.0001708]
[1735471307069,2.591281,95361.0,95344.0,0.0001708]
[1735471307371,0.008,95359.0,95344.0,0.0011708]